fUST/lending_fUST_20240917
["ID","MTS","AMOUNT","RATE_DAILY","PERIOD"]
[338399946,1726584972255,3547.34,0.00024,60]
[338399947,1726584972356,231.47209248,0.00024,60]
[338399948,1726584973043,500.0,0.00024,60]
[338399949,1726584974887,500.0,0.00024,60]
[338399950,1726584975529,500.0,0.00024,60]
[338399951,1726584975608,500.0,0.00024,60]
[338399952,1726584975725,757.62,0.00024,60]
[338399953,1726584976809,500.0,0.00024,60]
[338399954,1726584977039,1458.3,0.00024,60]
[338399955,1726584980035,1040.35,0.00024,60]
[338399956,1726584980125,693.83,0.00024,60]
[338399957,1726584980200,809.57,0.00024,60]
[338399958,1726584982269,500.0,0.00024,60]
[338399959,1726584982995,500.0,0.00024,60]
[338399960,1726584985204,500.0,0.00024,60]
[338399961,1726584987262,773.87,0.00024,60]
[338399962,1726584987778,500.0,0.00024,60]
[338399963,1726584987943,1376.68,0.00024,60]
[338399964,1726584989494,1412.51,0.00024,60]
[338399965,1726584990368,1621.73,0.00024,60]
[338399966,1726584990830,500.0,0.00024,60]
[338399967,1726584991465,500.0,0.00024,60]
[338399968,1726584992763,746.25,0.00024,60]
[338399969,1726584993009,6720.6,0.00024,60]
[338399974,1726584995459,689.85,0.00024,60]
[338399975,1726584996217,505.14,0.00024,60]
[338399976,1726584996610,588.51,0.00024,60]
[338399977,1726584998547,1425.28,0.00024,60]
[338399978,1726584999882,500.0,0.00024,60]
[338399979,1726585002165,1754.38,0.00024,60]
[338399980,1726585002292,1353.03,0.00024,60]
[338399981,1726585004312,500.0,0.00024,60]
[338399982,1726585004840,656.06,0.00024,60]
[338399983,1726585005043,589.3,0.00024,60]
[338399984,1726585005482,500.0,0.00024,60]
[338399985,1726585006532,802.88,0.00024,60]
[338399986,1726585007637,1005.11,0.00024,60]
[338399988,1726585009015,618.19,0.00024,60]
[338399989,1726585009939,970.47,0.00024,60]
[338399990,1726585011044,500.0,0.00024,60]
[338399991,1726585011815,1823.07,0.00024,60]
[338399992,1726585011967,1708.79,0.00024,60]
[338399993,1726585013989,622.44164515,0.00024,60]
[338399994,1726585014753,1686.5,0.00024,60]
[338399995,1726585017700,500.0,0.00024,60]
[338399996,1726585019796,500.0,0.00024,60]
[338399997,1726585022622,159.70857791,0.00024,60]
[338399998,1726585022692,1093.43,0.00024,60]
[338399999,1726585022768,500.0,0.00024,60]
[338400000,1726585023510,500.0,0.00024,60]
[338400001,1726585024959,500.0,0.00024,60]
[338400002,1726585025476,1036.83,0.00024,60]
[338400003,1726585026334,500.0,0.00024,60]
[338400004,1726585026565,500.0,0.00024,60]
[338400005,1726585027183,500.0,0.00024,60]
[338400006,1726585027601,500.0,0.00024,60]
[338400007,1726585030968,500.0,0.00024,60]
[338400008,1726585032067,1069.05,0.00024,60]
[338400009,1726585033622,845.1,0.00024,60]
[338400010,1726585035090,548.95,0.00024,60]
[338400011,1726585035154,602.03,0.00024,60]
[338400012,1726585035443,1459.98,0.00024,60]
[338400013,1726585037571,522.61,0.00024,60]
[338400014,1726585037817,1186.52,0.00024,60]
[338400015,1726585042732,1325.06,0.00024,60]
[338400016,1726585042888,500.0,0.00024,60]
[338400017,1726585043383,1862.78,0.00024,60]
[338400018,1726585044582,500.0,0.00024,60]
[338400019,1726585045219,500.0,0.00024,60]
[338400020,1726585045883,500.0,0.00024,60]
[338400021,1726585048898,529.96738877,0.00024,60]
[338400022,1726585050869,500.0,0.00024,60]
[338400023,1726585052833,500.0,0.00024,60]
[338400024,1726585052896,455.03563068,0.00024,60]
[338400025,1726585053194,935.17,0.00024,60]
[338400026,1726585056089,1843.68,0.00024,60]
[338400027,1726585059900,500.0,0.00024,60]
[338400028,1726585061039,1107.31,0.00024,60]
[338400029,1726585061822,504.92566106,0.00024,60]
[338400030,1726585062128,1800.17,0.00024,60]
[338400031,1726585062882,1806.05,0.00024,60]
[338400032,1726585063938,1733.76,0.00024,60]
[338400033,1726585065041,500.0,0.00024,60]
[338400034,1726585066793,1518.62,0.00024,60]
[338400037,1726585069112,2347.96,0.00024,60]
[338400038,1726585069599,500.0,0.00024,60]
[338400039,1726585069894,702.23,0.00024,60]
[338400040,1726585072419,500.0,0.00024,60]
[338400041,1726585072833,1009.85,0.00024,60]
[338400042,1726585077623,500.0,0.00024,60]
[338400043,1726585078010,1146.93,0.00024,60]
[338400044,1726585079358,500.0,0.00024,60]
[338400045,1726585080725,3291.71,0.00024,60]
[338400046,1726585081195,1751.88,0.00024,60]
[338400047,1726585081263,589.44283574,0.00024,60]
[338400048,1726585081328,500.0,0.00024,60]
[338400049,1726585085334,2013.31,0.00024,60]
[338400050,1726585087326,500.0,0.00024,60]
[338400051,1726585089256,500.0,0.00024,60]
[338400052,1726585089998,500.0,0.00024,60]
[338400053,1726585090737,500.0,0.00024,60]
[338400054,1726585092597,1515.42,0.00024,60]
[338400055,1726585092758,500.0,0.00024,60]
[338400056,1726585094319,550.06,0.00024,60]
[338400057,1726585095668,759.84,0.00024,60]
[338400058,1726585097669,500.0,0.00024,60]
[338400059,1726585100496,500.0,0.00024,60]
[338400060,1726585101183,552.89238154,0.00024,60]
[338400061,1726585107859,500.0,0.00024,60]
[338400064,1726585110165,554.72085749,0.00024,60]
[338400065,1726585112779,648.41,0.00024,60]
[338400066,1726585112948,500.0,0.00024,60]
[338400067,1726585115310,2256.87,0.00024,60]
[338400070,1726585116835,1053.63,0.00024,60]
[338400071,1726585116985,8040.83,0.00024,60]
[338400072,1726585118270,813.64,0.00024,60]
[338400073,1726585120209,2455.38,0.00024,60]
[338400074,1726585123872,7207.41,0.00024,60]
[338400075,1726585124169,500.0,0.00024,60]
[338400076,1726585125505,500.0,0.00024,60]
[338400077,1726585125917,500.0,0.00024,60]
[338400078,1726585126988,500.0,0.00024,60]
[338400081,1726585127497,500.0,0.00024,60]
[338400082,1726585129016,1713.89,0.00024,60]
[338400083,1726585129083,500.0,0.00024,60]
[338400084,1726585129551,709.79,0.00024,60]
[338400085,1726585130930,1375.96,0.00024,60]
[338400086,1726585133305,500.0,0.00024,60]
[338400087,1726585134058,500.0,0.00024,60]
[338400088,1726585134659,516.94,0.00024,60]
[338400089,1726585136158,500.0,0.00024,60]
[338400090,1726585136455,500.0,0.00024,60]
[338400091,1726585136742,351.43,0.00024,60]
[338400092,1726585137641,500.0,0.00024,60]
[338400093,1726585138968,1564.12,0.00024,60]
[338400094,1726585141085,500.0,0.00024,60]
[338400095,1726585141271,500.0,0.00024,60]
[338400096,1726585141347,3431.6,0.00024,60]
[338400097,1726585141409,581.5,0.00024,60]
[338400098,1726585142293,541.50965603,0.00024,60]
[338400099,1726585143091,500.0,0.00024,60]
[338400100,1726585143608,406.45126843,0.00024,60]
[338400101,1726585146416,1884.53,0.00024,60]
[338400102,1726585148391,451.41282479,0.00024,60]
[338400103,1726585152083,514.94,0.00024,60]
[338400104,1726585152355,2233.91,0.00024,60]
[338400105,1726585153051,1366.5,0.00024,60]
[338400106,1726585157576,-1000.0,0.00019,30]
[338400107,1726585158647,1147.64,0.00024,60]
[338400108,1726585159470,4300.32,0.00024,60]
[338400109,1726585159638,924.48,0.00024,60]
[338400110,1726585161861,784.74,0.00024,60]
[338400111,1726585168046,500.0,0.00024,60]
[338400112,1726585169299,6266.02,0.00024,60]
[338400113,1726585171015,1513.27,0.00024,60]
[338400114,1726585171520,2396.2,0.00024,60]
[338400116,1726585172433,500.0,0.00024,60]
[338400117,1726585173894,1808.57,0.00024,60]
[338400119,1726585177716,2597.18,0.00024,60]
[338400120,1726585178305,2047.61,0.00024,60]
[338400121,1726585178991,1664.04,0.00024,60]
[338400122,1726585182169,500.0,0.00024,60]
[338400123,1726585184163,1235.38,0.00024,60]
[338400124,1726585186006,-1000.0,0.0002051,30]
[338400125,1726585189988,1450.55,0.00024,60]
[338400126,1726585193966,1020.04,0.00024,60]
[338400127,1726585195131,500.0,0.00024,60]
[338400128,1726585195479,997.0,0.00024,60]
[338400129,1726585196395,-787.1490321,0.0002051,30]
[338400130,1726585196427,-1300.0,0.0002051,30]
[338400131,1726585196461,-2700.0,0.0002051,30]
[338400132,1726585196488,-1300.0,0.0002051,30]
[338400133,1726585196517,-2700.0,0.0002051,30]
[338400134,1726585196545,-1212.8509679,0.0002051,30]
[338400135,1726585202979,500.0,0.00024,60]
[338400136,1726585207882,613.73,0.00024,60]
[338400137,1726585217675,500.0,0.00024,60]
[338400138,1726585217799,804.0,0.00024,60]
[338400139,1726585218090,855.03,0.00024,60]
[338400140,1726585218941,500.0,0.00024,60]
[338400141,1726585219628,3332.13,0.00024,60]
[338400142,1726585219945,500.0,0.00024,60]
[338400143,1726585222776,500.0,0.00024,60]
[338400144,1726585223729,500.0,0.00024,60]
[338400145,1726585223806,887.45,0.00024,60]
[338400146,1726585225615,500.0,0.00024,60]
[338400147,1726585226269,500.0,0.00024,60]
[338400148,1726585226986,1560.99,0.00024,60]
[338400149,1726585227516,6440.58,0.00024,60]
[338400150,1726585227710,500.0,0.00024,60]
[338400151,1726585227834,500.0,0.00024,60]
[338400152,1726585228634,500.0,0.00024,60]
[338400153,1726585230018,500.0,0.00024,60]
[338400154,1726585230087,500.0,0.00024,60]
[338400155,1726585230416,500.0,0.00024,60]
[338400156,1726585230899,500.0,0.00024,60]
[338400157,1726585233600,620.55,0.00024,60]
[338400158,1726585233675,688.07,0.00024,60]
[338400159,1726585233825,500.0,0.00024,60]
[338400160,1726585233903,1080.06,0.00024,60]
[338400161,1726585234090,2116.55,0.00024,60]
[338400162,1726585235927,500.0,0.00024,60]
[338400163,1726585237533,500.0,0.00024,60]
[338400164,1726585238900,500.0,0.00024,60]
[338400165,1726585239098,1637.59,0.00024,60]
[338400166,1726585239195,1747.11,0.00024,60]
[338400167,1726585239652,500.0,0.00024,60]
[338400168,1726585240199,778.95,0.00024,60]
[338400169,1726585242521,602.16,0.00024,60]
[338400170,1726585242946,757.77,0.00024,60]
[338400171,1726585243860,500.0,0.00024,60]
[338400172,1726585244384,935.73,0.00024,60]
[338400173,1726585244861,780.87,0.00024,60]
[338400174,1726585245116,500.0,0.00024,60]
[338400175,1726585245515,500.0,0.00024,60]
[338400176,1726585245923,500.0,0.00024,60]
[338400177,1726585246445,500.0,0.00024,60]
[338400178,1726585246513,351.81,0.00024,60]
[338400179,1726585248014,500.0,0.00024,60]
[338400180,1726585248799,500.0,0.00024,60]
[338400181,1726585248876,779.23,0.00024,60]
[338400182,1726585248944,500.0,0.00024,60]
[338400183,1726585249321,2636.33,0.00024,60]
[338400184,1726585252449,500.0,0.00024,60]
[338400185,1726585252538,500.0,0.00024,60]
[338400186,1726585253587,500.0,0.00024,60]
[338400187,1726585255129,500.0,0.00024,60]
[338400188,1726585255515,500.0,0.00024,60]
[338400189,1726585256337,500.0,0.00024,60]
[338400190,1726585258107,500.0,0.00024,60]
[338400191,1726585258732,1815.05,0.00024,60]
[338400192,1726585258798,1707.23,0.00024,60]
[338400193,1726585258969,500.0,0.00024,60]
[338400194,1726585259434,1302.58,0.00024,60]
[338400195,1726585259929,1097.04,0.00024,60]
[338400196,1726585260083,275.69671567,0.00024,60]
[338400197,1726585260161,500.0,0.00024,60]
[338400198,1726585261670,1867.58,0.00024,60]
[338400199,1726585263379,2065.2,0.00024,60]
[338400200,1726585264284,1660.02,0.00024,60]
[338400201,1726585264708,500.0,0.00024,60]
[338400202,1726585265553,500.0,0.00024,60]
[338400203,1726585267468,1497.35,0.00024,60]
[338400204,1726585267739,660.24,0.00024,60]
[338400205,1726585268356,566.27,0.00024,60]
[338400206,1726585268489,1481.35,0.00024,60]
[338400207,1726585268564,500.0,0.00024,60]
[338400208,1726585268765,500.0,0.00024,60]
[338400209,1726585270145,715.15,0.00024,60]
[338400210,1726585271122,1588.38,0.00024,60]
[338400211,1726585272240,500.0,0.00024,60]
[338400212,1726585275636,1863.83,0.00024,60]
[338400213,1726585276154,500.0,0.00024,60]
[338400214,1726585276340,930.23,0.00024,60]
[338400215,1726585277724,1316.12,0.00024,60]
[338400216,1726585278108,904.7,0.00024,60]
[338400217,1726585278173,500.0,0.00024,60]
[338400218,1726585278617,500.0,0.00024,60]
[338400219,1726585278681,500.0,0.00024,60]
[338400220,1726585280350,1000.0,0.00024,60]
[338400221,1726585280756,1397.54,0.00024,60]
[338400222,1726585281070,1534.86,0.00024,60]
[338400223,1726585281353,500.0,0.00024,60]
[338400224,1726585282815,1000.0,0.00024,60]
[338400225,1726585282890,1521.88,0.00024,60]
[338400226,1726585283055,2755.04,0.00024,60]
[338400227,1726585284250,500.0,0.00024,60]
[338400228,1726585284480,1000.0,0.00024,60]
[338400229,1726585285922,1000.0,0.00024,60]
[338400230,1726585286091,500.0,0.00024,60]
[338400231,1726585287061,500.0,0.00024,60]
[338400232,1726585287528,1000.0,0.00024,60]
[338400233,1726585287595,500.0,0.00024,60]
[338400234,1726585289194,1000.0,0.00024,60]
[338400235,1726585289438,598.41186685,0.00024,60]
[338400236,1726585289633,503.36247502,0.00024,60]
[338400237,1726585289755,546.86,0.00024,60]
[338400238,1726585290932,1000.0,0.00024,60]
[338400239,1726585291688,710.34,0.00024,60]
[338400240,1726585291750,500.0,0.00024,60]
[338400241,1726585291831,2418.17,0.00024,60]
[338400242,1726585292166,545.09,0.00024,60]
[338400243,1726585292392,1000.0,0.00024,60]
[338400244,1726585292599,3399.54,0.00024,60]
[338400245,1726585292878,500.0,0.00024,60]
[338400246,1726585293561,500.0,0.00024,60]
[338400247,1726585294113,1000.0,0.00024,60]
[338400248,1726585294615,1642.31,0.00024,60]
[338400249,1726585295993,1147.23,0.00024,60]
[338400250,1726585296060,1000.0,0.00024,60]
[338400251,1726585296635,500.0,0.00024,60]
[338400252,1726585297387,171.46213336,0.00024,60]
[338400254,1726585297562,547.68,0.00024,60]
[338400255,1726585297700,1000.0,0.00024,60]
[338400256,1726585298481,1455.35,0.00024,60]
[338400257,1726585299601,1000.0,0.00024,60]
[338400258,1726585300088,915.2,0.00024,60]
[338400259,1726585301426,1000.0,0.00024,60]
[338400260,1726585302006,500.0,0.00024,60]
[338400261,1726585302814,628.73,0.00024,60]
[338400262,1726585302882,708.2,0.00024,60]
[338400263,1726585302964,500.0,0.00024,60]
[338400264,1726585303088,1000.0,0.00024,60]
[338400265,1726585304829,1000.0,0.00024,60]
[338400266,1726585304988,1132.0,0.00024,60]
[338400267,1726585306579,1000.0,0.00024,60]
[338400268,1726585306989,500.0,0.00024,60]
[338400269,1726585307060,500.0,0.00024,60]
[338400270,1726585307124,500.0,0.00024,60]
[338400271,1726585307928,500.0,0.00024,60]
[338400272,1726585308336,1000.0,0.00024,60]
[338400273,1726585309288,661.9,0.00024,60]
[338400274,1726585311076,1172.62,0.00024,60]
[338400275,1726585311483,1000.0,0.00024,60]
[338400276,1726585312142,1425.56,0.00024,60]
[338400277,1726585313181,1000.0,0.00024,60]
[338400278,1726585314284,500.0,0.00024,60]
[338400279,1726585314525,1000.0,0.00024,60]
[338400280,1726585314656,500.0,0.00024,60]
[338400281,1726585314721,500.0,0.00024,60]
[338400282,1726585316083,899.64,0.00024,60]
[338400283,1726585318589,500.0,0.00024,60]
[338400284,1726585319109,500.0,0.00024,60]
[338400285,1726585320176,615.06,0.00024,60]
[338400286,1726585320674,500.0,0.00024,60]
[338400287,1726585321470,2376.79,0.00024,60]
[338400288,1726585322738,1147.94,0.00024,60]
[338400289,1726585323031,500.0,0.00024,60]
[338400290,1726585323388,500.0,0.00024,60]
[338400291,1726585324070,2353.07,0.00024,60]
[338400292,1726585324229,2723.81,0.00024,60]
[338400293,1726585324793,1000.0,0.00024,60]
[338400294,1726585326262,1000.0,0.00024,60]
[338400295,1726585326456,452.11616928,0.00024,60]
[338400296,1726585327457,1365.9,0.00024,60]
[338400297,1726585327551,500.0,0.00024,60]
[338400298,1726585328073,1000.0,0.00024,60]
[338400299,1726585328506,500.0,0.00024,60]
[338400300,1726585329629,500.0,0.00024,60]
[338400301,1726585329862,1000.0,0.00024,60]
[338400302,1726585330931,1390.44,0.00024,60]
[338400303,1726585331147,500.0,0.00024,60]
[338400304,1726585331379,1000.0,0.00024,60]
[338400305,1726585331888,500.0,0.00024,60]
[338400306,1726585332344,500.0,0.00024,60]
[338400307,1726585333011,1000.0,0.00024,60]
[338400308,1726585334724,1000.0,0.00024,60]
[338400309,1726585335718,497.94850857,0.00024,60]
[338400310,1726585336217,1000.0,0.00024,60]
[338400311,1726585336290,500.0,0.00024,60]
[338400312,1726585336405,500.0,0.00024,60]
[338400313,1726585337101,558.64,0.00024,60]
[338400314,1726585338027,1000.0,0.00024,60]
[338400315,1726585338241,500.0,0.00024,60]
[338400316,1726585338478,500.0,0.00024,60]
[338400317,1726585339501,1000.0,0.00024,60]
[338400322,1726585341033,1000.0,0.00024,60]
[338400323,1726585342171,500.0,0.00024,60]
[338400324,1726585342229,1047.88,0.00024,60]
[338400325,1726585342350,1000.0,0.00024,60]
[338400326,1726585342460,1656.19,0.00024,60]
[338400327,1726585344123,1000.0,0.00024,60]
[338400328,1726585345070,1217.8,0.00024,60]
[338400329,1726585345604,500.0,0.00024,60]
[338400330,1726585345818,1000.0,0.00024,60]
[338400331,1726585345880,576.37,0.00024,60]
[338400332,1726585346630,500.0,0.00024,60]
[338400333,1726585347391,1000.0,0.00024,60]
[338400334,1726585348566,500.0,0.00024,60]
[338400335,1726585348968,500.0,0.00024,60]
[338400336,1726585349038,1000.0,0.00024,60]
[338400337,1726585350732,1000.0,0.00024,60]
[338400338,1726585352468,1000.0,0.00024,60]
[338400339,1726585352862,500.0,0.00024,60]
[338400341,1726585354378,1000.0,0.00024,60]
[338400342,1726585354755,1501.83,0.00024,60]
[338400343,1726585354819,1733.21,0.00024,60]
[338400344,1726585356278,1000.0,0.00024,60]
[338400345,1726585358800,1000.0,0.00024,60]
[338400346,1726585360289,1000.0,0.00024,60]
[338400347,1726585362084,1000.0,0.00024,60]
[338400348,1726585363644,850.47,0.00024,60]
[338400349,1726585364029,1000.0,0.00024,60]
[338400350,1726585365974,1000.0,0.00024,60]
[338400351,1726585366119,479.47477782,0.00024,60]
[338400352,1726585367966,1000.0,0.00024,60]
[338400353,1726585368033,507.6,0.00024,60]
[338400354,1726585370054,1000.0,0.00024,60]
[338400355,1726585370310,880.7,0.00024,60]
[338400356,1726585372002,1000.0,0.00024,60]
[338400357,1726585373832,1000.0,0.00024,60]
[338400358,1726585374368,500.0,0.00024,60]
[338400360,1726585375964,500.0,0.00024,60]
[338400361,1726585377296,659.4,0.00024,60]
[338400362,1726585377754,1024.5,0.00024,60]
[338400363,1726585379647,-87.1490321,0.0002051,30]
[338400364,1726585379685,-2700.0,0.0002051,30]
[338400365,1726585379711,-1300.0,0.0002051,30]
[338400366,1726585379737,-2504.99849805,0.0002051,30]
[338400367,1726585379762,-2700.0,0.0002051,30]
[338400368,1726585379788,-707.85246985,0.0002051,30]
[338400369,1726585380535,1766.86,0.00024,60]
[338400370,1726585380781,500.0,0.00024,60]
[338400372,1726585385422,1680.27,0.00024,60]
[338400373,1726585390232,833.99,0.00024,60]
[338400374,1726585391055,720.61,0.00024,60]
[338400375,1726585392160,500.0,0.00024,60]
[338400376,1726585392704,500.0,0.00024,60]
[338400377,1726585393395,956.74,0.00024,60]
[338400378,1726585395422,563.2,0.00024,60]
[338400379,1726585396636,500.0,0.00024,60]
[338400380,1726585397255,170.0,0.00024,60]
[338400381,1726585397479,1209.53,0.00024,60]
[338400382,1726585398861,500.0,0.00024,60]
[338400383,1726585399744,500.0,0.00024,60]
[338400384,1726585399918,534.53,0.00024,60]
[338400385,1726585401629,500.0,0.00024,60]
[338400386,1726585402100,500.0,0.00024,60]
[338400387,1726585402367,500.0,0.00024,60]
[338400388,1726585402753,896.21,0.00024,60]
[338400389,1726585404373,500.0,0.00024,60]
[338400390,1726585404930,500.0,0.00024,60]
[338400391,1726585405942,500.0,0.00024,60]
[338400392,1726585407879,1009.73,0.00024,60]
[338400393,1726585407953,614.09505271,0.00024,60]
[338400394,1726585409413,1035.06,0.00024,60]
[338400395,1726585409880,6907.1,0.00024,60]
[338400396,1726585410004,1580.23,0.00024,60]
[338400397,1726585410093,500.0,0.00024,60]
[338400398,1726585410341,861.31,0.00024,60]
[338400399,1726585411397,500.0,0.00024,60]
[338400400,1726585411794,500.0,0.00024,60]
[338400401,1726585412201,500.0,0.00024,60]
[338400402,1726585413388,662.11,0.00024,60]
[338400403,1726585414336,1590.85,0.00024,60]
[338400404,1726585414779,500.0,0.00024,60]
[338400405,1726585415002,500.0,0.00024,60]
[338400406,1726585415592,500.0,0.00024,60]
[338400407,1726585417128,557.27,0.00024,60]
[338400408,1726585417950,634.45,0.00024,60]
[338400409,1726585418209,1730.79,0.00024,60]
[338400410,1726585418915,4121.14,0.00024,60]
[338400411,1726585418988,1000.0,0.00024,60]
[338400412,1726585419071,500.0,0.00024,60]
[338400413,1726585419135,1498.94,0.00024,60]
[338400414,1726585420066,1000.0,0.00024,60]
[338400415,1726585420362,500.0,0.00024,60]
[338400416,1726585421283,1000.0,0.00024,60]
[338400417,1726585422414,1000.0,0.00024,60]
[338400418,1726585422792,3095.44,0.00024,60]
[338400419,1726585423287,500.0,0.00024,60]
[338400420,1726585423439,1000.0,0.00024,60]
[338400421,1726585423712,2221.09,0.00024,60]
[338400422,1726585424504,1099.14,0.00024,60]
[338400423,1726585424934,1000.0,0.00024,60]
[338400424,1726585425459,500.0,0.00024,60]
[338400425,1726585425843,1000.0,0.00024,60]
[338400426,1726585427675,1000.0,0.00024,60]
[338400427,1726585427881,728.18,0.00024,60]
[338400428,1726585427955,500.0,0.00024,60]
[338400429,1726585428015,1254.97,0.00024,60]
[338400430,1726585428414,1000.0,0.00024,60]
[338400431,1726585428557,1537.64,0.00024,60]
[338400432,1726585429730,1000.0,0.00024,60]
[338400433,1726585429939,756.16,0.00024,60]
[338400434,1726585430913,1000.0,0.00024,60]
[338400435,1726585432323,1000.0,0.00024,60]
[338400436,1726585432748,1000.0,0.00024,60]
[338400437,1726585433347,1000.0,0.00024,60]
[338400438,1726585433642,500.0,0.00024,60]
[338400439,1726585434510,2541.68,0.00024,60]
[338400440,1726585434576,500.0,0.00024,60]
[338400441,1726585434659,1000.0,0.00024,60]
[338400442,1726585436041,500.0,0.00024,60]
[338400443,1726585436212,1000.0,0.00024,60]
[338400444,1726585436324,631.05,0.00024,60]
[338400445,1726585436650,1678.88,0.00024,60]
[338400446,1726585437844,827.75,0.00024,60]
[338400447,1726585437906,500.0,0.00024,60]
[338400448,1726585437979,1962.29,0.00024,60]
[338400449,1726585438947,-1992.14753015,0.0002051,30]
[338400450,1726585438975,-2700.0,0.0002051,30]
[338400451,1726585439002,-2700.0,0.0002051,30]
[338400452,1726585439028,-2607.85246985,0.0002051,30]
[338400453,1726585439465,500.0,0.00024,60]
[338400454,1726585440988,2192.99,0.00024,60]
[338400455,1726585441060,6004.93,0.00024,60]
[338400456,1726585441130,500.0,0.00024,60]
[338400457,1726585441464,2060.27,0.00024,60]
[338400458,1726585441877,323.1153349,0.00024,60]
[338400459,1726585443858,500.0,0.00024,60]
[338400460,1726585444955,500.0,0.00024,60]
[338400461,1726585445449,582.93,0.00024,60]
[338400462,1726585447111,533.2,0.00024,60]
[338400463,1726585447222,1000.0,0.00024,60]
[338400464,1726585447606,500.0,0.00024,60]
[338400465,1726585447668,1452.28,0.00024,60]
[338400466,1726585448187,1522.2,0.00024,60]
[338400467,1726585448627,1594.71,0.00024,60]
[338400468,1726585448714,500.0,0.00024,60]